bitfinex/quotes_SOLUSD_20250624
["timestamp","ask_amount","ask_price","bid_price","bid_amount"]
[1750760540192,5.13491742,144.03,143.98,6.1022]
[1750760540482,25.9169096,144.07,143.98,6.1022]
[1750760540783,25.94360712,144.06,143.98,6.1022]
[1750760540973,5.13360712,144.05,143.98,6.1022]
[1750760541156,5.13360712,144.04,143.98,6.1022]
[1750760541361,5.13340497,144.03,143.98,6.1022]
[1750760541558,25.9169096,144.06,143.98,6.1022]
[1750760541874,25.94346517,144.05,143.97,1.1906]
[1750760542078,25.94346517,144.05,143.95,6.6598]
[1750760542079,32.59467477,144.04,143.95,6.6598]
[1750760542260,25.94346517,144.03,143.95,6.6598]
[1750760542573,25.94346517,144.02,143.93,1.1906]
[1750760542780,5.13346517,144.01,143.93,1.1906]
[1750760542973,5.13346517,144.0,143.93,1.1906]
[1750760543173,5.13346517,143.99,143.93,1.1906]
[1750760543474,5.12773416,143.98,143.93,1.1906]
[1750760543681,5.12773416,143.97,143.91,6.1606]
[1750760543877,25.9169096,144.02,143.91,6.1606]
[1750760544179,20.81,144.0,143.91,6.1606]
[1750760544366,25.93749102,143.99,143.91,6.1606]
[1750760544553,5.12749102,143.98,143.91,6.1606]
[1750760544754,5.12749102,143.97,143.91,6.1606]
[1750760544961,5.12749102,143.96,143.91,6.1606]
[1750760545289,5.12749102,143.98,143.91,6.1606]
[1750760545451,146.6,143.99,143.91,6.1606]
[1750760545653,5.1203279,143.98,143.91,6.1606]
[1750760545885,148.1443,144.04,143.91,6.1606]
[1750760546056,10.24427847,144.03,143.92,1.1906]
[1750760546256,5.12104301,144.02,143.92,1.1906]
[1750760546574,5.12104301,144.01,143.92,1.1906]
[1750760546783,5.12104301,144.0,143.92,1.1906]
[1750760546954,5.12104301,144.03,143.92,1.1906]
[1750760547150,5.12104301,144.02,143.92,1.1906]
[1750760547372,5.12104301,144.01,143.92,1.1906]
[1750760547581,168.9543,144.04,143.92,1.1906]
[1750760547783,5.12168737,144.03,143.92,1.1906]
[1750760548079,168.9543,144.04,143.92,1.1906]
[1750760548080,5.12168737,144.02,143.92,1.1906]
[1750760548277,5.12168737,144.01,143.92,1.1906]
[1750760548482,168.9543,144.04,143.92,1.1906]
[1750760548676,5.13179448,144.03,143.92,1.1906]
[1750760548868,5.13179448,144.02,143.92,1.1906]
[1750760549070,5.13179448,144.01,143.92,1.1906]
[1750760549272,20.81,144.03,143.92,1.1906]
[1750760549472,5.13811182,144.02,143.92,1.1906]
[1750760549771,5.13811182,144.01,143.92,1.1906]
[1750760549970,20.81,144.03,143.92,1.1906]
[1750760550172,5.14015056,144.02,143.92,1.1906]
[1750760550476,5.14015056,144.01,143.92,1.1906]
[1750760550654,20.81,144.02,143.92,1.1906]
[1750760550858,20.81,144.03,143.92,1.1906]
[1750760551059,5.14456242,144.02,143.92,1.1906]
[1750760552671,5.14633874,144.02,143.92,1.1906]
[1750760553684,5.13985864,144.02,143.92,1.1906]
[1750760554488,25.95761068,144.03,143.93,6.3812]
[1750760554801,20.81,144.03,143.93,6.3812]
[1750760555783,146.6,144.04,143.93,6.3812]
[1750760555987,5.14918914,144.03,143.93,6.3812]
[1750760556191,167.41,144.04,143.93,6.3812]
[1750760556485,5.15030623,144.03,143.93,6.3812]
[1750760557798,167.41,144.04,143.93,6.3812]
[1750760558082,5.15185013,144.03,143.93,6.3812]
[1750760558292,5.15185013,144.02,143.93,6.3812]
[1750760558586,5.15185013,144.03,143.93,6.3812]
[1750760558892,167.41,144.04,143.93,6.3812]
[1750760558893,5.15185013,144.02,143.93,6.3812]
[1750760559076,5.15185013,144.03,143.93,6.3812]
[1750760559280,5.15185013,144.02,143.93,6.3812]
[1750760559593,5.15185013,144.03,143.93,6.3812]
[1750760559770,5.15185013,144.02,143.93,6.3812]
[1750760560090,5.15185013,144.03,143.93,6.3812]
[1750760560589,5.15185013,144.02,143.93,6.3812]
[1750760560891,5.15203684,144.03,143.93,6.3812]
[1750760561066,5.15203684,144.02,143.93,6.3812]
[1750760561268,5.15203684,144.03,143.93,6.3812]
[1750760561466,5.15203684,144.02,143.93,6.3812]
[1750760561662,25.96203684,144.03,143.93,6.3812]
[1750760561873,5.15203684,144.02,143.93,6.3812]
[1750760562306,25.96203684,144.01,143.93,6.3812]
[1750760562488,20.81,144.01,143.93,6.3812]
[1750760562784,25.96074463,144.0,143.93,6.3812]
[1750760562982,20.81,144.0,143.93,6.3812]
[1750760563783,22.4453,144.02,143.93,6.3812]
[1750760563984,20.81,144.0,143.93,6.3812]
[1750760564990,25.95871203,143.99,143.93,6.3812]
[1750760565294,25.95871203,143.99,143.92,1.1906]
[1750760565295,20.81,143.99,143.92,1.1906]
[1750760565596,5.14841077,143.98,143.92,1.1906]
[1750760566091,172.55841077,143.98,143.92,1.1906]
[1750760566299,20.81,143.96,143.9,6.0352]
[1750760566882,20.81,143.96,143.88,1.1906]
[1750760567275,20.81,143.97,143.88,1.1906]
[1750760567598,20.81,143.95,143.88,1.1906]
[1750760568796,20.81,143.97,143.88,1.1906]
[1750760569101,25.94602761,143.96,143.88,1.1906]
[1750760569303,20.81,143.96,143.88,1.1906]
[1750760570001,146.6,143.98,143.88,1.1906]
[1750760570209,5.13696893,143.97,143.89,6.18]
[1750760570413,146.6,143.98,143.89,6.18]
[1750760575806,5.15577359,143.97,143.89,6.18]
[1750760576194,167.41,143.98,143.89,6.18]
[1750760576383,5.15407096,143.97,143.89,6.18]
[1750760576580,5.15831783,143.96,143.89,6.18]
[1750760576780,5.15831783,143.95,143.89,6.18]
[1750760577012,167.41,143.98,143.89,6.18]
[1750760577209,25.96936934,143.97,143.89,6.18]
[1750760577404,5.15936934,143.96,143.89,6.18]
[1750760577602,5.15936934,143.95,143.89,6.18]
[1750760577804,5.15936934,143.94,143.89,6.18]
[1750760578008,20.81,143.97,143.89,6.18]
[1750760578192,5.15832319,143.96,143.89,6.18]
[1750760578391,5.15832319,143.95,143.89,6.18]
[1750760578594,5.15807269,143.94,143.89,6.18]
[1750760578904,5.15659364,143.96,143.89,6.18]
[1750760579113,5.15659364,143.95,143.89,6.18]
[1750760579308,20.81,143.97,143.89,6.18]
[1750760579614,5.15723378,143.96,143.89,6.18]
[1750760579913,5.15723378,143.95,143.89,6.18]
[1750760580210,26.42932056,143.97,143.89,6.18]
[1750760580512,5.15734291,143.96,143.89,6.18]
[1750760580726,5.15734291,143.95,143.89,6.18]
[1750760580892,5.15734291,143.94,143.89,6.18]
[1750760581082,26.42932056,143.97,143.89,6.18]
[1750760581286,25.97031427,143.96,143.89,6.18]
[1750760581487,5.16031427,143.95,143.89,6.18]
[1750760581703,5.16031427,143.94,143.89,6.18]
[1750760581902,20.81,143.96,143.89,6.18]
[1750760582118,5.16219543,143.95,143.89,6.18]
[1750760582294,5.16219543,143.94,143.89,6.18]
[1750760582606,20.81,143.95,143.89,6.18]
[1750760582805,5.1661649,143.94,143.89,6.18]
[1750760583001,20.81,143.95,143.89,6.18]
[1750760583219,20.81,143.97,143.89,6.18]
[1750760583514,5.16492276,143.96,143.89,6.18]
[1750760583714,5.16492276,143.95,143.89,6.18]
[1750760583920,26.27961333,143.97,143.89,6.18]
[1750760584116,5.1619444,143.96,143.89,6.18]
[1750760584304,5.1619444,143.95,143.89,6.18]
[1750760584504,20.81,143.97,143.89,6.18]
[1750760584840,5.16330469,143.96,143.89,6.18]
[1750760585104,20.81,143.97,143.89,6.18]
[1750760585314,5.16558861,143.96,143.89,6.18]
[1750760585506,146.6,143.98,143.89,6.18]
[1750760585700,5.16529859,143.97,143.89,6.18]
[1750760585921,5.16529859,143.96,143.89,6.18]
[1750760586225,146.6,143.98,143.89,6.18]
[1750760586395,5.16616626,143.97,143.89,6.18]
[1750760586591,146.6,143.98,143.89,6.18]
[1750760586796,5.16590349,143.97,143.89,6.18]
[1750760587015,5.16590349,143.96,143.89,6.18]
[1750760587217,146.6,143.98,143.89,6.18]
[1750760587416,5.16908827,143.97,143.89,6.18]
[1750760587621,5.16908827,143.96,143.89,6.18]
[1750760587822,167.41,143.98,143.89,6.18]
[1750760588010,5.16872552,143.97,143.89,6.18]
[1750760588323,5.16872552,143.96,143.89,6.18]
[1750760588517,172.91787033,143.98,143.89,6.18]
[1750760588721,5.17026634,143.97,143.89,6.18]
[1750760588904,172.91787033,143.98,143.89,6.18]
[1750760588905,5.17026634,143.96,143.89,6.18]
[1750760589104,172.91787033,143.98,143.89,6.18]
[1750760589300,5.16816484,143.97,143.89,6.18]
[1750760589501,5.16816484,143.96,143.89,6.18]
[1750760589701,172.91787033,143.98,143.89,6.18]
[1750760590125,5.16926372,143.97,143.89,6.18]
[1750760590425,5.16926372,143.96,143.89,6.18]
[1750760590624,167.41,143.98,143.89,6.18]
[1750760590823,5.17033808,143.97,143.89,6.18]
[1750760591021,5.17033808,143.96,143.89,6.18]
[1750760591204,167.41,143.98,143.89,6.18]
[1750760591406,5.1701025,143.97,143.89,6.18]
[1750760591621,5.1701025,143.96,143.89,6.18]
[1750760591821,173.07540908,143.98,143.89,6.18]
[1750760592030,5.1702822,143.97,143.89,6.18]
[1750760592210,5.1702822,143.96,143.89,6.18]
[1750760592416,173.07540908,143.98,143.89,6.18]
[1750760592606,25.98070359,143.97,143.89,6.18]
[1750760592806,25.98070359,143.96,143.89,6.18]
[1750760593033,5.17070359,143.95,143.89,6.18]
[1750760593209,5.17070359,143.94,143.89,6.18]
[1750760593416,20.81,143.96,143.89,6.18]
[1750760593602,5.16986708,143.95,143.89,6.18]
[1750760593811,5.16986708,143.94,143.89,6.18]
[1750760594035,20.81,143.96,143.89,6.18]
[1750760594242,5.17062312,143.95,143.89,6.18]
[1750760594440,5.17062312,143.94,143.89,6.18]
[1750760594643,20.81,143.96,143.89,6.18]
[1750760594808,5.17032686,143.95,143.89,6.18]
[1750760595009,5.17032686,143.94,143.89,6.18]
[1750760595210,20.81,143.97,143.89,6.18]
[1750760595420,5.17038728,143.96,143.89,6.18]
[1750760595704,5.17038728,143.95,143.89,6.18]
[1750760595903,20.81,143.97,143.89,6.18]
[1750760596105,5.17035868,143.96,143.89,6.18]
[1750760596331,5.17035868,143.95,143.89,6.18]
[1750760596542,20.81,143.97,143.89,6.18]
[1750760596837,20.81,143.95,143.89,6.18]
[1750760597013,5.17108755,143.94,143.89,6.18]
[1750760597212,20.81,143.95,143.89,6.18]
[1750760597429,5.16969116,143.94,143.89,6.18]
[1750760597636,20.81,143.95,143.89,6.18]
[1750760597820,5.17053179,143.94,143.89,6.18]
[1750760598013,20.81,143.97,143.89,6.18]
[1750760598214,20.81,143.95,143.89,6.18]
[1750760598429,5.17096222,143.94,143.89,6.18]
[1750760598631,20.81,143.95,143.89,6.18]
[1750760598846,5.17155117,143.94,143.89,6.18]
[1750760599041,20.81,143.95,143.89,6.18]
[1750760599247,5.17321392,143.94,143.89,6.18]
[1750760599531,20.81,143.97,143.89,6.18]
[1750760599728,20.81,143.95,143.89,6.18]
[1750760599911,5.17341262,143.94,143.89,6.18]
[1750760600112,20.81,143.95,143.89,6.18]
[1750760600330,5.17327172,143.94,143.89,6.18]
[1750760600535,20.81,143.95,143.89,6.18]
[1750760600832,5.17551817,143.94,143.89,6.18]
[1750760601043,20.81,143.96,143.89,6.18]
[1750760601226,5.1755301,143.95,143.89,6.18]
[1750760601419,5.1755301,143.94,143.89,6.18]
[1750760601619,20.81,143.96,143.89,6.18]
[1750760601915,5.17627968,143.95,143.89,6.18]
[1750760602114,5.17627367,143.94,143.89,6.18]
[1750760602347,20.81,143.96,143.89,6.18]
[1750760602543,25.98659235,143.95,143.89,6.18]
[1750760602743,5.17659235,143.94,143.89,6.18]
[1750760603040,5.17659235,143.93,143.89,6.18]
[1750760603215,20.81,143.95,143.89,6.18]
[1750760603417,5.17988893,143.94,143.89,6.18]
[1750760603627,5.17988893,143.93,143.89,6.18]
[1750760603834,20.81,143.96,143.89,6.18]
[1750760604023,25.98924348,143.95,143.89,6.18]
[1750760604220,5.17924348,143.94,143.89,6.18]
[1750760604443,146.6,143.98,143.89,6.18]
[1750760604635,5.18036335,143.97,143.89,6.18]
[1750760604831,5.18306636,143.97,143.89,6.18]
[1750760605361,20.81,143.96,143.89,6.18]
[1750760605722,25.99306636,143.96,143.89,6.18]
[1750760605923,20.81,143.96,143.89,6.18]
[1750760606131,25.99306636,143.96,143.89,6.18]
[1750760606330,20.81,143.96,143.89,6.18]
[1750760606547,25.99306636,143.96,143.89,6.18]
[1750760606743,20.81,143.96,143.89,6.18]
[1750760606942,25.99306636,143.96,143.89,6.18]
[1750760607141,20.81,143.96,143.89,6.18]
[1750760607447,25.99306636,143.96,143.89,6.18]
[1750760607634,20.81,143.97,143.89,6.18]
[1750760607837,20.81,143.95,143.89,6.18]
[1750760608420,5.18763489,143.94,143.89,6.18]
[1750760608626,5.18763489,143.93,143.89,6.18]
[1750760608847,5.18652643,143.92,143.89,6.18]
[1750760609154,25.99916518,143.95,143.89,6.18]
[1750760609338,25.99463063,143.94,143.89,6.18]
[1750760609534,25.99463063,143.93,143.86,6.1704]
[1750760609731,25.99463063,143.92,143.86,6.1704]
[1750760609932,5.18463063,143.91,143.86,6.1704]
[1750760610131,20.81,143.92,143.86,6.1704]
[1750760610344,5.18604265,143.91,143.86,6.1704]
[1750760610544,5.1857396,143.9,143.86,6.1704]
[1750760610751,20.81,143.94,143.86,6.1704]
[1750760611049,20.81,143.92,143.86,6.1704]
[1750760611246,5.18592133,143.91,143.86,6.1704]
[1750760611423,5.18592133,143.9,143.86,6.1704]
[1750760611626,20.81,143.92,143.86,6.1704]
[1750760611851,5.1749023,143.91,143.86,6.1704]
[1750760612052,5.1749023,143.9,143.86,6.1704]
[1750760612255,20.81,143.94,143.86,6.1704]
[1750760612462,20.81,143.92,143.86,6.1704]
[1750760612758,5.1807848,143.91,143.86,6.1704]
[1750760612956,5.1807848,143.9,143.86,6.1704]
[1750760613162,20.81,143.91,143.86,6.1704]
[1750760614129,20.81,143.92,143.86,6.1704]
[1750760614824,20.81,143.92,143.84,1.1906]
[1750760615255,25.98986447,143.93,143.84,1.1906]
[1750760615458,20.81,143.93,143.84,1.1906]
[1750760615753,25.99171381,143.92,143.84,1.1906]
[1750760615956,5.18239043,143.91,143.84,1.1906]
[1750760616132,5.18239043,143.9,143.84,1.1906]
[1750760616331,20.81,143.92,143.84,1.1906]
[1750760616553,5.18033757,143.91,143.84,1.1906]
[1750760616725,5.18033757,143.9,143.84,1.1906]
[1750760616932,20.81,143.93,143.84,1.1906]
[1750760617131,5.18059011,143.92,143.84,1.1906]
[1750760617338,5.18059011,143.91,143.84,1.1906]
[1750760617655,20.81,143.94,143.84,1.1906]
[1750760617856,25.98988102,143.93,143.84,1.1906]
[1750760618166,5.17988102,143.92,143.84,1.1906]
[1750760618332,5.18006139,143.91,143.84,1.1906]
[1750760618657,20.81,143.93,143.84,1.1906]
[1750760618834,5.18012314,143.92,143.84,1.1906]
[1750760619029,20.81,143.9,143.84,1.1906]
[1750760619243,8.59136481,143.95,143.84,1.1906]
[1750760619458,20.81,143.93,143.84,1.1906]
[1750760619753,5.18033474,143.92,143.85,6.0451]
[1750760619951,5.17986447,143.95,143.85,6.0451]
[1750760620151,5.18003504,143.94,143.85,6.0451]
[1750760620352,5.18003504,143.93,143.85,6.0451]
[1750760620535,5.18003504,143.92,143.85,6.0451]
[1750760620737,20.81,143.95,143.85,6.0451]
[1750760620942,5.18036801,143.94,143.85,6.0451]
[1750760621252,5.18123584,143.93,143.85,6.0451]
[1750760621458,5.18123584,143.92,143.85,6.0451]
[1750760621659,20.81,143.95,143.85,6.0451]
[1750760621839,5.18090706,143.94,143.85,6.0451]
[1750760622040,5.18090706,143.93,143.85,6.0451]
[1750760622254,5.18090706,143.92,143.85,6.0451]
[1750760622449,20.81,143.95,143.85,6.0451]
[1750760622655,5.1814723,143.94,143.85,6.0451]
[1750760622849,5.1814723,143.93,143.85,6.0451]
[1750760623057,5.1814723,143.92,143.85,6.0451]
[1750760623358,20.81,143.95,143.85,6.0451]
[1750760623561,5.18184016,143.94,143.85,6.0451]
[1750760623749,5.18184016,143.93,143.85,6.0451]
[1750760623954,5.18184016,143.92,143.85,6.0451]
[1750760624155,167.41,143.96,143.85,6.0451]
[1750760624355,25.99293052,143.95,143.85,6.0451]
[1750760624551,5.18293052,143.94,143.85,6.0451]
[1750760624734,5.183339,143.93,143.85,6.0451]
[1750760624938,5.183339,143.92,143.85,6.0451]
[1750760625248,167.41,143.96,143.85,6.0451]
[1750760625560,5.18146377,143.95,143.85,6.0451]
[1750760625761,5.18146377,143.94,143.85,6.0451]
[1750760625966,5.18146377,143.93,143.85,6.0451]
[1750760626146,167.41,143.96,143.85,6.0451]
[1750760626347,25.99216667,143.95,143.85,6.0451]
[1750760626549,5.18216667,143.94,143.85,6.0451]
[1750760626742,5.18216667,143.93,143.85,6.0451]
[1750760626950,5.18216667,143.92,143.85,6.0451]
[1750760627162,25.99083424,143.95,143.85,6.0451]
[1750760627363,5.18148544,143.94,143.85,6.0451]
[1750760627666,5.18148544,143.93,143.85,6.0451]
[1750760627867,5.18148544,143.92,143.85,6.0451]
[1750760628163,25.99083424,143.95,143.85,6.0451]
[1750760628363,5.1809181,143.94,143.85,6.0451]
[1750760628542,5.1809181,143.93,143.85,6.0451]
[1750760628743,5.1809181,143.92,143.85,6.0451]
[1750760628943,25.99083424,143.95,143.85,6.0451]
[1750760629167,5.18134811,143.94,143.85,6.0451]
[1750760629341,5.18134811,143.93,143.85,6.0451]
[1750760629542,5.18134811,143.92,143.85,6.0451]
[1750760629743,146.6,143.96,143.86,1.1906]
[1750760629944,5.18318567,143.95,143.86,1.1906]
[1750760630150,5.18318567,143.94,143.87,6.5615]
[1750760630365,5.18305373,143.99,143.88,1.1906]
[1750760630560,5.18414638,143.98,143.88,1.1906]
[1750760630866,5.184816,143.97,143.88,1.1906]
[1750760631053,179.6629712,144.0,143.88,1.1906]
[1750760631253,5.18470305,143.99,143.88,1.1906]
[1750760631566,5.18470305,143.98,143.88,1.1906]
[1750760631754,5.18470305,143.97,143.89,6.6025]
[1750760631949,178.1591712,144.0,143.89,6.6025]
[1750760632156,5.18727187,143.99,143.89,6.6025]
[1750760632470,5.18727187,143.98,143.89,6.6025]
[1750760632650,5.18727187,143.97,143.89,6.6025]
[1750760632851,178.1591712,144.0,143.89,6.6025]
[1750760633053,5.18377703,143.99,143.89,6.6025]
[1750760633267,5.1839273,143.98,143.89,6.6025]
[1750760633449,5.1839273,143.97,143.89,6.6025]
[1750760633639,5.18390238,143.96,143.89,6.6025]
[1750760633844,20.81,143.98,143.89,6.6025]
[1750760634051,5.18346602,143.97,143.89,6.6025]
[1750760634351,5.18346602,143.96,143.89,6.6025]
[1750760634551,20.81,143.98,143.89,6.6025]
[1750760634844,25.99272834,143.97,143.89,6.6025]
[1750760635058,5.18272834,143.96,143.89,6.6025]
[1750760635253,5.18272834,143.95,143.89,6.6025]
[1750760635447,25.99224162,143.99,143.89,6.6025]
[1750760635655,5.18274888,143.98,143.89,6.6025]
[1750760635852,5.18274888,143.97,143.89,6.6025]
[1750760636064,5.18274888,143.96,143.89,6.6025]
[1750760636375,5.1798869,143.95,143.89,6.6025]
[1750760636547,25.99224162,143.99,143.89,6.6025]
[1750760636746,25.99070414,143.98,143.89,6.6025]
[1750760636968,5.18070414,143.97,143.89,6.6025]
[1750760637265,5.18070414,143.96,143.89,6.6025]
[1750760637469,5.18070414,143.95,143.89,6.6025]
[1750760637772,5.18070414,143.94,143.89,6.6025]
[1750760637968,25.99224162,143.98,143.89,6.6025]
[1750760638270,25.99118651,143.97,143.89,6.6025]
[1750760638466,5.18101718,143.96,143.89,6.6025]
[1750760638774,5.18101718,143.95,143.89,6.6025]
[1750760638976,20.81,143.97,143.89,6.6025]
[1750760639158,5.18014191,143.96,143.89,6.6025]
[1750760639469,5.18014191,143.95,143.89,6.6025]
[1750760639667,20.81,143.98,143.89,6.6025]
[1750760639845,20.81,143.96,143.89,6.6025]
[1750760640051,5.17907663,143.95,143.89,6.6025]
[1750760640254,20.81,143.96,143.89,6.6025]
[1750760640458,5.17925661,143.95,143.89,6.6025]
[1750760640659,20.81,143.96,143.89,6.6025]
[1750760640861,5.17930211,143.95,143.89,6.6025]
[1750760641074,22.4629,143.98,143.89,6.6025]
[1750760641278,25.98879333,143.97,143.89,6.6025]
[1750760641456,5.17879333,143.96,143.89,6.6025]
[1750760641657,20.81,143.97,143.89,6.6025]
[1750760641658,5.17879333,143.95,143.89,6.6025]
[1750760641871,20.81,143.97,143.89,6.6025]
[1750760642073,5.1788109,143.96,143.89,6.6025]
[1750760642379,5.1788109,143.95,143.89,6.6025]
[1750760642580,5.1788109,143.94,143.89,6.6025]
[1750760642880,22.4629,143.98,143.89,6.6025]
[1750760643057,25.98862355,143.97,143.89,6.6025]
[1750760643256,5.17862355,143.96,143.89,6.6025]
[1750760643475,5.17862355,143.95,143.89,6.6025]
[1750760643663,5.17862355,143.94,143.89,6.6025]
[1750760643866,20.81,143.97,143.89,6.6025]
[1750760644067,22.4629,143.98,143.89,6.6025]
[1750760644265,25.98891805,143.97,143.89,6.6025]
[1750760644462,5.17891805,143.96,143.89,6.6025]
[1750760644669,5.17830477,143.95,143.89,6.6025]
[1750760644983,5.17830477,143.94,143.89,6.6025]
[1750760645162,20.81,143.97,143.89,6.6025]
[1750760645466,5.17448183,143.96,143.89,6.6025]
[1750760645665,5.17448183,143.95,143.89,6.6025]
[1750760645872,22.4629,143.98,143.89,6.6025]
[1750760646070,25.98464567,143.97,143.89,6.6025]
[1750760646389,5.17464205,143.96,143.89,6.6025]
[1750760646566,5.17464205,143.95,143.89,6.6025]
[1750760646767,20.81,143.97,143.89,6.6025]
[1750760646987,5.17486162,143.96,143.89,6.6025]
[1750760647155,25.99224162,143.99,143.89,6.6025]
[1750760647362,5.17401906,143.98,143.89,6.6025]
[1750760647559,5.17401906,143.97,143.89,6.6025]
[1750760647754,20.81,143.99,143.89,6.6025]
[1750760647984,5.17424204,143.98,143.89,6.6025]
[1750760648186,5.17425564,143.97,143.89,6.6025]
[1750760648380,20.81,143.99,143.89,6.6025]
[1750760648588,5.17365611,143.98,143.89,6.6025]
[1750760648772,5.17365611,143.97,143.89,6.6025]
[1750760648972,20.81,144.0,143.89,6.6025]
[1750760649169,5.1742965,143.99,143.9,1.1906]
[1750760649484,1.5344,144.02,143.91,6.1752]
[1750760649666,5.17170187,144.01,143.91,6.1752]
[1750760649866,1.5344,144.02,143.91,6.1752]
[1750760649867,5.17174752,144.0,143.91,6.1752]
[1750760650079,5.17174752,143.99,143.91,6.1752]
[1750760650282,20.81,144.01,143.91,6.1752]
[1750760650583,5.17176109,144.0,143.91,6.1752]
[1750760650768,5.17176109,143.99,143.91,6.1752]
[1750760650968,20.81,144.01,143.91,6.1752]
[1750760651176,5.17195879,144.0,143.91,6.1752]
[1750760651371,5.17195879,143.99,143.91,6.1752]
[1750760651574,20.81,144.01,143.91,6.1752]
[1750760651773,5.16829177,144.0,143.91,6.1752]
[1750760651988,5.16829177,143.99,143.91,6.1752]
[1750760652299,20.81,144.01,143.91,6.1752]
[1750760652464,5.16397995,144.0,143.91,6.1752]
[1750760652666,20.81,144.01,143.91,6.1752]
[1750760653680,22.3444,144.02,143.91,6.1752]
[1750760654695,25.96565436,144.01,143.91,6.1752]
[1750760654991,5.15565436,144.0,143.91,6.1752]
[1750760655179,20.81,144.01,143.91,6.1752]
[1750760655379,5.15116675,144.0,143.91,6.1752]
[1750760655588,20.81,144.01,143.91,6.1752]
[1750760655893,5.15000316,144.0,143.91,6.1752]
[1750760656086,20.81,144.01,143.91,6.1752]
[1750760656273,5.14955879,144.0,143.91,6.1752]
[1750760656476,20.81,144.01,143.91,6.1752]
[1750760656674,25.95917931,144.0,143.91,6.1752]
[1750760656877,20.81,143.98,143.91,6.1752]
[1750760657278,20.81,143.98,143.9,1.1906]
[1750760657586,25.9552439,143.97,143.88,6.0392]
[1750760657788,20.81,143.95,143.88,6.0392]
[1750760659181,22.4366,143.97,143.88,6.0392]
[1750760659495,25.95346926,143.96,143.88,6.0392]
[1750760659693,5.14346926,143.95,143.88,6.0392]
[1750760659900,20.81,143.96,143.88,6.0392]
[1750760660189,5.1436004,143.95,143.88,6.0392]
[1750760660366,22.4366,143.97,143.88,6.0392]
[1750760660570,25.9535585,143.96,143.88,6.0392]
[1750760660770,5.1435585,143.95,143.88,6.0392]
[1750760660966,20.81,143.96,143.88,6.0392]
[1750760661173,5.14335707,143.95,143.88,6.0392]
[1750760661371,20.81,143.96,143.88,6.0392]
[1750760661594,5.14433702,143.95,143.88,6.0392]
[1750760661897,22.4366,143.97,143.88,6.0392]
[1750760662072,25.95445621,143.96,143.88,6.0392]
[1750760662272,5.14445621,143.95,143.88,6.0392]
[1750760662500,5.14445621,143.94,143.88,6.0392]
[1750760662796,20.81,143.96,143.88,6.0392]
[1750760662998,5.14703318,143.95,143.88,6.0392]
[1750760663296,5.14703318,143.94,143.88,6.0392]
[1750760663497,22.4366,143.97,143.88,6.0392]
[1750760663701,20.81,143.95,143.88,6.0392]
[1750760663895,5.14684836,143.94,143.88,6.0392]
[1750760664078,20.81,143.95,143.88,6.0392]
[1750760664279,5.14873565,143.94,143.88,6.0392]
[1750760664481,22.4366,143.97,143.88,6.0392]
[1750760664682,20.81,143.97,143.88,6.0392]
[1750760666301,5.14590123,143.96,143.88,6.0392]
[1750760666505,5.14590123,143.95,143.88,6.0392]
[1750760666698,20.81,143.97,143.88,6.0392]
[1750760666996,5.14494849,143.96,143.88,6.0392]
[1750760667198,5.14494849,143.95,143.88,6.0392]
[1750760667420,5.14494849,143.94,143.88,6.0392]
[1750760667702,20.81,143.97,143.88,6.0392]
[1750760667886,5.14627366,143.96,143.88,6.0392]
[1750760668083,5.14627366,143.95,143.88,6.0392]
[1750760668284,20.81,143.97,143.88,6.0392]
[1750760668588,5.14698474,143.96,143.89,1.1906]
[1750760668791,146.6,143.98,143.89,1.1906]